Workbook

Sheet Mortgage Analysis
A1: Terms of Your Loan | I1: Extra Payments
A3: Years (up to 30) | C3: 30 | I3: Enter any additional payment to the principal, weather it is a one time payment or a series of payments, than review the savings at the end of this table.
A4: Interest Rate % | C4: 0.04375
A5: Loan Amount | C5: 200000
A6: Date of First Payment | C6: 2016-01-01
A8: Regular Payment Schedule | H8: Compare Results of Extra Payments
A9: Payment # | B9: Due Date | C9: Payment | D9: Interest | E9: Principal | F9: Balance | H9: Payment | I9: Interest | J9: Extra Payment | K9: Principal | L9: Balance
A10: 0 | F10: =C5 -> 200000 | L10: =C5 -> 200000
A11: 1 | B11: =C6 -> 2016-01-01 | C11: =IF(F10>0,-PMT($C$4/12,$C$3*12,$C$5,0,0),0) -> 998.5705155 | D11: =IF(F10>0,F10*($C$4/12),0) -> 729.1666667 | E11: =C11-D11 -> 269.4038488 | F11: =ROUND(IF(F10-E11>0,F10-E11,0),2) -> 199730.6 | H11: =IF(L10>0,MIN(-PMT($C$4/12,$C$3*12,$C$5,0,0),L10+I11),0) -> 998.5705155 | I11: =IF(L10>0,L10*($C$4/12),0) -> 729.1666667 | K11: =IF(H11=0,0,MIN(L10,H11-I11+J11)) -> 269.4038488 | L11: =ROUND(IF(L10-K11>0,L10-K11,0),2) -> 199730.6
A12: 2 | B12: =EDATE(B11,1) -> 2016-02-01 | C12: 998.5705155 | D12: 728.1844792 | E12: =C12-D12 -> 270.3860363 | F12: =ROUND(IF(F11-E12>0,F11-E12,0),2) -> 199460.21 | H12: 998.5705155 | I12: 728.1844792 | K12: 270.3860363 | L12: =ROUND(IF(L11-K12>0,L11-K12,0),2) -> 199460.21
A13: 3 | B13: =EDATE(B12,1) -> 2016-03-01 | C13: 998.5705155 | D13: 727.1986823 | E13: 271.3718332 | F13: 199188.84 | H13: 998.5705155 | I13: 727.1986823 | K13: 271.3718332 | L13: 199188.84
A14: 4 | B14: 2016-04-01 | C14: 998.5705155 | D14: 726.2093125 | E14: 272.361203 | F14: 198916.48 | H14: 998.5705155 | I14: 726.2093125 | K14: 272.361203 | L14: 198916.48
A15: 5 | B15: 2016-05-01 | C15: 998.5705155 | D15: 725.2163333 | E15: 273.3541821 | F15: 198643.13 | H15: 998.5705155 | I15: 725.2163333 | K15: 273.3541821 | L15: 198643.13
A16: 6 | B16: 2016-06-01 | C16: 998.5705155 | D16: 724.2197448 | E16: 274.3507707 | F16: 198368.78 | H16: 998.5705155 | I16: 724.2197448 | K16: 274.3507707 | L16: 198368.78
A17: 7 | B17: 2016-07-01 | C17: 998.5705155 | D17: 723.2195104 | E17: 275.3510051 | F17: 198093.43 | H17: 998.5705155 | I17: 723.2195104 | K17: 275.3510051 | L17: 198093.43
A18: 8 | B18: 2016-08-01 | C18: 998.5705155 | D18: 722.2156302 | E18: 276.3548853 | F18: 197817.08 | H18: 998.5705155 | I18: 722.2156302 | K18: 276.3548853 | L18: 197817.08
A19: 9 | B19: 2016-09-01 | C19: 998.5705155 | D19: 721.2081042 | E19: 277.3624113 | F19: 197539.72 | H19: 998.5705155 | I19: 721.2081042 | K19: 277.3624113 | L19: 197539.72
A20: 10 | B20: 2016-10-01 | C20: 998.5705155 | D20: 720.1968958 | E20: 278.3736196 | F20: 197261.35 | H20: 998.5705155 | I20: 720.1968958 | K20: 278.3736196 | L20: 197261.35
A21: 11 | B21: 2016-11-01 | C21: 998.5705155 | D21: 719.1820052 | E21: 279.3885103 | F21: 196981.96 | H21: 998.5705155 | I21: 719.1820052 | K21: 279.3885103 | L21: 196981.96
A22: 12 | B22: 2016-12-01 | C22: 998.5705155 | D22: 718.1633958 | E22: 280.4071196 | F22: 196701.55 | H22: 998.5705155 | I22: 718.1633958 | K22: 280.4071196 | L22: 196701.55
A23: 13 | B23: 2017-01-01 | C23: 998.5705155 | D23: 717.1410677 | E23: 281.4294478 | F23: 196420.12 | H23: 998.5705155 | I23: 717.1410677 | K23: 281.4294478 | L23: 196420.12
A24: 14 | B24: 2017-02-01 | C24: 998.5705155 | D24: 716.1150208 | E24: 282.4554946 | F24: 196137.66 | H24: 998.5705155 | I24: 716.1150208 | K24: 282.4554946 | L24: 196137.66
A25: 15 | B25: 2017-03-01 | C25: 998.5705155 | D25: 715.0852187 | E25: 283.4852967 | F25: 195854.17 | H25: 998.5705155 | I25: 715.0852187 | K25: 283.4852967 | L25: 195854.17
A26: 16 | B26: 2017-04-01 | C26: 998.5705155 | D26: 714.0516615 | E26: 284.518854 | F26: 195569.65 | H26: 998.5705155 | I26: 714.0516615 | K26: 284.518854 | L26: 195569.65
A27: 17 | B27: 2017-05-01 | C27: 998.5705155 | D27: 713.014349 | E27: 285.5561665 | F27: 195284.09 | H27: 998.5705155 | I27: 713.014349 | K27: 285.5561665 | L27: 195284.09
A28: 18 | B28: 2017-06-01 | C28: 998.5705155 | D28: 711.9732448 | E28: 286.5972707 | F28: 194997.49 | H28: 998.5705155 | I28: 711.9732448 | K28: 286.5972707 | L28: 194997.49
A29: 19 | B29: 2017-07-01 | C29: 998.5705155 | D29: 710.928349 | E29: 287.6421665 | F29: 194709.85 | H29: 998.5705155 | I29: 710.928349 | K29: 287.6421665 | L29: 194709.85
A30: 20 | B30: 2017-08-01 | C30: 998.5705155 | D30: 709.8796615 | E30: 288.690854 | F30: 194421.16 | H30: 998.5705155 | I30: 709.8796615 | K30: 288.690854 | L30: 194421.16
A31: 21 | B31: 2017-09-01 | C31: 998.5705155 | D31: 708.8271458 | E31: 289.7433696 | F31: 194131.42 | H31: 998.5705155 | I31: 708.8271458 | K31: 289.7433696 | L31: 194131.42
A32: 22 | B32: 2017-10-01 | C32: 998.5705155 | D32: 707.7708021 | E32: 290.7997134 | F32: 193840.62 | H32: 998.5705155 | I32: 707.7708021 | K32: 290.7997134 | L32: 193840.62
A33: 23 | B33: 2017-11-01 | C33: 998.5705155 | D33: 706.7105937 | E33: 291.8599217 | F33: 193548.76 | H33: 998.5705155 | I33: 706.7105937 | K33: 291.8599217 | L33: 193548.76
A34: 24 | B34: 2017-12-01 | C34: 998.5705155 | D34: 705.6465208 | E34: 292.9239946 | F34: 193255.84 | H34: 998.5705155 | I34: 705.6465208 | K34: 292.9239946 | L34: 193255.84
A35: 25 | B35: 2018-01-01 | C35: 998.5705155 | D35: 704.5785833 | E35: 293.9919321 | F35: 192961.85 | H35: 998.5705155 | I35: 704.5785833 | K35: 293.9919321 | L35: 192961.85
A36: 26 | B36: 2018-02-01 | C36: 998.5705155 | D36: 703.5067448 | E36: 295.0637707 | F36: 192666.79 | H36: 998.5705155 | I36: 703.5067448 | K36: 295.0637707 | L36: 192666.79
A37: 27 | B37: 2018-03-01 | C37: 998.5705155 | D37: 702.4310052 | E37: 296.1395103 | F37: 192370.65 | H37: 998.5705155 | I37: 702.4310052 | K37: 296.1395103 | L37: 192370.65
A38: 28 | B38: 2018-04-01 | C38: 998.5705155 | D38: 701.3513281 | E38: 297.2191873 | F38: 192073.43 | H38: 998.5705155 | I38: 701.3513281 | K38: 297.2191873 | L38: 192073.43
A39: 29 | B39: 2018-05-01 | C39: 998.5705155 | D39: 700.2677135 | E39: 298.3028019 | F39: 191775.13 | H39: 998.5705155 | I39: 700.2677135 | K39: 298.3028019 | L39: 191775.13
A40: 30 | B40: 2018-06-01 | C40: 998.5705155 | D40: 699.1801615 | E40: 299.390354 | F40: 191475.74 | H40: 998.5705155 | I40: 699.1801615 | K40: 299.390354 | L40: 191475.74
A41: 31 | B41: 2018-07-01 | C41: 998.5705155 | D41: 698.0886354 | E41: 300.4818801 | F41: 191175.26 | H41: 998.5705155 | I41: 698.0886354 | K41: 300.4818801 | L41: 191175.26
A42: 32 | B42: 2018-08-01 | C42: 998.5705155 | D42: 696.9931354 | E42: 301.5773801 | F42: 190873.68 | H42: 998.5705155 | I42: 696.9931354 | K42: 301.5773801 | L42: 190873.68
A43: 33 | B43: 2018-09-01 | C43: =IF(F42>0,-PMT($C$4/12,$C$3*12,$C$5,0,0),0) -> 998.5705155 | D43: =IF(F42>0,F42*($C$4/12),0) -> 695.893625 | E43: 302.6768905 | F43: 190571 | H43: =IF(L42>0,MIN(-PMT($C$4/12,$C$3*12,$C$5,0,0),L42+I43),0) -> 998.5705155 | I43: =IF(L42>0,L42*($C$4/12),0) -> 695.893625 | K43: 302.6768905 | L43: 190571
A44: 34 | B44: 2018-10-01 | C44: 998.5705155 | D44: 694.7901042 | E44: 303.7804113 | F44: 190267.22 | H44: 998.5705155 | I44: 694.7901042 | K44: 303.7804113 | L44: 190267.22
A45: 35 | B45: 2018-11-01 | C45: 998.5705155 | D45: 693.6825729 | E45: 304.8879426 | F45: 189962.33 | H45: 998.5705155 | I45: 693.6825729 | K45: 304.8879426 | L45: 189962.33
A46: 36 | B46: 2018-12-01 | C46: 998.5705155 | D46: 692.5709948 | E46: 305.9995207 | F46: 189656.33 | H46: 998.5705155 | I46: 692.5709948 | K46: 305.9995207 | L46: 189656.33
A47: 37 | B47: 2019-01-01 | C47: 998.5705155 | D47: 691.4553698 | E47: 307.1151457 | F47: 189349.21 | H47: 998.5705155 | I47: 691.4553698 | K47: 307.1151457 | L47: 189349.21
A48: 38 | B48: 2019-02-01 | C48: 998.5705155 | D48: 690.3356615 | E48: 308.234854 | F48: 189040.98 | H48: 998.5705155 | I48: 690.3356615 | K48: 308.234854 | L48: 189040.98
A49: 39 | B49: 2019-03-01 | C49: 998.5705155 | D49: 689.2119062 | E49: 309.3586092 | F49: 188731.62 | H49: 998.5705155 | I49: 689.2119062 | K49: 309.3586092 | L49: 188731.62
A50: 40 | B50: 2019-04-01 | C50: 998.5705155 | D50: 688.0840312 | E50: 310.4864842 | F50: 188421.13 | H50: 998.5705155 | I50: 688.0840312 | K50: 310.4864842 | L50: 188421.13
A51: 41 | B51: 2019-05-01 | C51: 998.5705155 | D51: 686.9520365 | E51: 311.618479 | F51: 188109.51 | H51: 998.5705155 | I51: 686.9520365 | K51: 311.618479 | L51: 188109.51
A52: 42 | B52: 2019-06-01 | C52: 998.5705155 | D52: 685.8159219 | E52: 312.7545936 | F52: 187796.76 | H52: 998.5705155 | I52: 685.8159219 | K52: 312.7545936 | L52: 187796.76
A53: 43 | B53: 2019-07-01 | C53: 998.5705155 | D53: 684.6756875 | E53: 313.894828 | F53: 187482.87 | H53: 998.5705155 | I53: 684.6756875 | K53: 313.894828 | L53: 187482.87
A54: 44 | B54: 2019-08-01 | C54: 998.5705155 | D54: 683.5312969 | E54: 315.0392186 | F54: 187167.83 | H54: 998.5705155 | I54: 683.5312969 | K54: 315.0392186 | L54: 187167.83
A55: 45 | B55: 2019-09-01 | C55: 998.5705155 | D55: 682.3827135 | E55: 316.1878019 | F55: 186851.64 | H55: 998.5705155 | I55: 682.3827135 | K55: 316.1878019 | L55: 186851.64
A56: 46 | B56: 2019-10-01 | C56: 998.5705155 | D56: 681.2299375 | E56: 317.340578 | F56: 186534.3 | H56: 998.5705155 | I56: 681.2299375 | K56: 317.340578 | L56: 186534.3
A57: 47 | B57: 2019-11-01 | C57: 998.5705155 | D57: 680.0729687 | E57: 318.4975467 | F57: 186215.8 | H57: 998.5705155 | I57: 680.0729687 | K57: 318.4975467 | L57: 186215.8
A58: 48 | B58: 2019-12-01 | C58: 998.5705155 | D58: 678.9117708 | E58: 319.6587446 | F58: 185896.14 | H58: 998.5705155 | I58: 678.9117708 | K58: 319.6587446 | L58: 185896.14
A59: 49 | B59: 2020-01-01 | C59: 998.5705155 | D59: 677.7463437 | E59: 320.8241717 | F59: 185575.32 | H59: 998.5705155 | I59: 677.7463437 | K59: 320.8241717 | L59: 185575.32
A60: 50 | B60: 2020-02-01 | C60: 998.5705155 | D60: 676.5766875 | E60: 321.993828 | F60: 185253.33 | H60: 998.5705155 | I60: 676.5766875 | K60: 321.993828 | L60: 185253.33
A61: 51 | B61: 2020-03-01 | C61: 998.5705155 | D61: 675.4027656 | E61: 323.1677498 | F61: 184930.16 | H61: 998.5705155 | I61: 675.4027656 | K61: 323.1677498 | L61: 184930.16
A62: 52 | B62: 2020-04-01 | C62: 998.5705155 | D62: 674.2245417 | E62: 324.3459738 | F62: 184605.81 | H62: 998.5705155 | I62: 674.2245417 | K62: 324.3459738 | L62: 184605.81
A63: 53 | B63: 2020-05-01 | C63: 998.5705155 | D63: 673.0420156 | E63: 325.5284998 | F63: 184280.28 | H63: 998.5705155 | I63: 673.0420156 | K63: 325.5284998 | L63: 184280.28
A64: 54 | B64: 2020-06-01 | C64: 998.5705155 | D64: 671.8551875 | E64: 326.715328 | F64: 183953.56 | H64: 998.5705155 | I64: 671.8551875 | K64: 326.715328 | L64: 183953.56
A65: 55 | B65: 2020-07-01 | C65: 998.5705155 | D65: 670.6640208 | E65: 327.9064946 | F65: 183625.65 | H65: 998.5705155 | I65: 670.6640208 | K65: 327.9064946 | L65: 183625.65
A66: 56 | B66: 2020-08-01 | C66: 998.5705155 | D66: 669.4685156 | E66: 329.1019998 | F66: 183296.55 | H66: 998.5705155 | I66: 669.4685156 | K66: 329.1019998 | L66: 183296.55
A67: 57 | B67: 2020-09-01 | C67: 998.5705155 | D67: 668.2686719 | E67: 330.3018436 | F67: 182966.25 | H67: 998.5705155 | I67: 668.2686719 | K67: 330.3018436 | L67: 182966.25
A68: 58 | B68: 2020-10-01 | C68: 998.5705155 | D68: 667.0644531 | E68: 331.5060623 | F68: 182634.74 | H68: 998.5705155 | I68: 667.0644531 | K68: 331.5060623 | L68: 182634.74
A69: 59 | B69: 2020-11-01 | C69: 998.5705155 | D69: 665.8558229 | E69: 332.7146926 | F69: 182302.03 | H69: 998.5705155 | I69: 665.8558229 | K69: 332.7146926 | L69: 182302.03
A70: 60 | B70: 2020-12-01 | C70: 998.5705155 | D70: 664.6428177 | E70: 333.9276978 | F70: 181968.1 | H70: 998.5705155 | I70: 664.6428177 | K70: 333.9276978 | L70: 181968.1
A71: 61 | B71: 2021-01-01 | C71: 998.5705155 | D71: 663.4253646 | E71: 335.1451509 | F71: 181632.95 | H71: 998.5705155 | I71: 663.4253646 | K71: 335.1451509 | L71: 181632.95
A72: 62 | B72: 2021-02-01 | C72: 998.5705155 | D72: 662.2034635 | E72: 336.3670519 | F72: 181296.58 | H72: 998.5705155 | I72: 662.2034635 | K72: 336.3670519 | L72: 181296.58
A73: 63 | B73: 2021-03-01 | C73: 998.5705155 | D73: 660.9771146 | E73: 337.5934009 | F73: 180958.99 | H73: 998.5705155 | I73: 660.9771146 | K73: 337.5934009 | L73: 180958.99
A74: 64 | B74: 2021-04-01 | C74: 998.5705155 | D74: 659.7463177 | E74: 338.8241978 | F74: 180620.17 | H74: 998.5705155 | I74: 659.7463177 | K74: 338.8241978 | L74: 180620.17
A75: 65 | B75: 2021-05-01 | C75: =IF(F74>0,-PMT($C$4/12,$C$3*12,$C$5,0,0),0) -> 998.5705155 | D75: =IF(F74>0,F74*($C$4/12),0) -> 658.5110365 | E75: 340.059479 | F75: 180280.11 | H75: =IF(L74>0,MIN(-PMT($C$4/12,$C$3*12,$C$5,0,0),L74+I75),0) -> 998.5705155 | I75: =IF(L74>0,L74*($C$4/12),0) -> 658.5110365 | K75: =IF(H75=0,0,MIN(L74,H75-I75+J75)) -> 340.059479 | L75: 180280.11
A76: 66 | B76: 2021-06-01 | C76: 998.5705155 | D76: 657.2712344 | E76: =C76-D76 -> 341.2992811 | F76: =ROUND(IF(F75-E76>0,F75-E76,0),2) -> 179938.81 | H76: 998.5705155 | I76: 657.2712344 | K76: 341.2992811 | L76: =ROUND(IF(L75-K76>0,L75-K76,0),2) -> 179938.81
A77: 67 | B77: =EDATE(B76,1) -> 2021-07-01 | C77: 998.5705155 | D77: 656.0269115 | E77: 342.543604 | F77: 179596.27 | H77: 998.5705155 | I77: 656.0269115 | K77: 342.543604 | L77: 179596.27
A78: 68 | B78: 2021-08-01 | C78: 998.5705155 | D78: 654.7780677 | E78: 343.7924478 | F78: 179252.48 | H78: 998.5705155 | I78: 654.7780677 | K78: 343.7924478 | L78: 179252.48
A79: 69 | B79: 2021-09-01 | C79: 998.5705155 | D79: 653.5246667 | E79: 345.0458488 | F79: 178907.43 | H79: 998.5705155 | I79: 653.5246667 | K79: 345.0458488 | L79: 178907.43
A80: 70 | B80: 2021-10-01 | C80: 998.5705155 | D80: 652.2666719 | E80: 346.3038436 | F80: 178561.13 | H80: 998.5705155 | I80: 652.2666719 | K80: 346.3038436 | L80: 178561.13
A81: 71 | B81: 2021-11-01 | C81: 998.5705155 | D81: 651.0041198 | E81: 347.5663957 | F81: 178213.56 | H81: 998.5705155 | I81: 651.0041198 | K81: 347.5663957 | L81: 178213.56
A82: 72 | B82: 2021-12-01 | C82: 998.5705155 | D82: 649.7369375 | E82: 348.833578 | F82: 177864.73 | H82: 998.5705155 | I82: 649.7369375 | K82: 348.833578 | L82: 177864.73
A83: 73 | B83: 2022-01-01 | C83: 998.5705155 | D83: 648.4651615 | E83: 350.105354 | F83: 177514.62 | H83: 998.5705155 | I83: 648.4651615 | K83: 350.105354 | L83: 177514.62
A84: 74 | B84: 2022-02-01 | C84: 998.5705155 | D84: 647.1887187 | E84: 351.3817967 | F84: 177163.24 | H84: 998.5705155 | I84: 647.1887187 | K84: 351.3817967 | L84: 177163.24
A85: 75 | B85: 2022-03-01 | C85: 998.5705155 | D85: 645.9076458 | E85: 352.6628696 | F85: 176810.58 | H85: 998.5705155 | I85: 645.9076458 | K85: 352.6628696 | L85: 176810.58
A86: 76 | B86: 2022-04-01 | C86: 998.5705155 | D86: 644.6219062 | E86: 353.9486092 | F86: 176456.63 | H86: 998.5705155 | I86: 644.6219062 | K86: 353.9486092 | L86: 176456.63
A87: 77 | B87: 2022-05-01 | C87: 998.5705155 | D87: 643.3314635 | E87: 355.2390519 | F87: 176101.39 | H87: 998.5705155 | I87: 643.3314635 | K87: 355.2390519 | L87: 176101.39
A88: 78 | B88: 2022-06-01 | C88: 998.5705155 | D88: 642.0363177 | E88: 356.5341978 | F88: 175744.86 | H88: 998.5705155 | I88: 642.0363177 | K88: 356.5341978 | L88: 175744.86
A89: 79 | B89: 2022-07-01 | C89: 998.5705155 | D89: 640.7364687 | E89: 357.8340467 | F89: 175387.03 | H89: 998.5705155 | I89: 640.7364687 | K89: 357.8340467 | L89: 175387.03
A90: 80 | B90: 2022-08-01 | C90: 998.5705155 | D90: 639.4318802 | E90: 359.1386353 | F90: 175027.89 | H90: 998.5705155 | I90: 639.4318802 | K90: 359.1386353 | L90: 175027.89
A91: 81 | B91: 2022-09-01 | C91: 998.5705155 | D91: 638.1225156 | E91: 360.4479998 | F91: 174667.44 | H91: 998.5705155 | I91: 638.1225156 | K91: 360.4479998 | L91: 174667.44
A92: 82 | B92: 2022-10-01 | C92: 998.5705155 | D92: 636.808375 | E92: 361.7621405 | F92: 174305.68 | H92: 998.5705155 | I92: 636.808375 | K92: 361.7621405 | L92: 174305.68
A93: 83 | B93: 2022-11-01 | C93: 998.5705155 | D93: 635.4894583 | E93: 363.0810571 | F93: 173942.6 | H93: 998.5705155 | I93: 635.4894583 | K93: 363.0810571 | L93: 173942.6
A94: 84 | B94: 2022-12-01 | C94: 998.5705155 | D94: 634.1657292 | E94: 364.4047863 | F94: 173578.2 | H94: 998.5705155 | I94: 634.1657292 | K94: 364.4047863 | L94: 173578.2
A95: 85 | B95: 2023-01-01 | C95: 998.5705155 | D95: 632.8371875 | E95: 365.733328 | F95: 173212.47 | H95: 998.5705155 | I95: 632.8371875 | K95: 365.733328 | L95: 173212.47
A96: 86 | B96: 2023-02-01 | C96: 998.5705155 | D96: 631.5037969 | E96: 367.0667186 | F96: 172845.4 | H96: 998.5705155 | I96: 631.5037969 | K96: 367.0667186 | L96: 172845.4
A97: 87 | B97: 2023-03-01 | C97: 998.5705155 | D97: 630.1655208 | E97: 368.4049946 | F97: 172477 | H97: 998.5705155 | I97: 630.1655208 | K97: 368.4049946 | L97: 172477
A98: 88 | B98: 2023-04-01 | C98: 998.5705155 | D98: 628.8223958 | E98: 369.7481196 | F98: 172107.25 | H98: 998.5705155 | I98: 628.8223958 | K98: 369.7481196 | L98: 172107.25
A99: 89 | B99: 2023-05-01 | C99: 998.5705155 | D99: 627.474349 | E99: 371.0961665 | F99: 171736.15 | H99: 998.5705155 | I99: 627.474349 | K99: 371.0961665 | L99: 171736.15
A100: 90 | B100: 2023-06-01 | C100: 998.5705155 | D100: 626.1213802 | E100: 372.4491353 | F100: 171363.7 | H100: 998.5705155 | I100: 626.1213802 | K100: 372.4491353 | L100: 171363.7
A101: 91 | B101: 2023-07-01 | C101: 998.5705155 | D101: 624.7634896 | E101: 373.8070259 | F101: 170989.89 | H101: 998.5705155 | I101: 624.7634896 | K101: 373.8070259 | L101: 170989.89
A102: 92 | B102: 2023-08-01 | C102: 998.5705155 | D102: 623.4006406 | E102: 375.1698748 | F102: 170614.72 | H102: 998.5705155 | I102: 623.4006406 | K102: 375.1698748 | L102: 170614.72
A103: 93 | B103: 2023-09-01 | C103: 998.5705155 | D103: 622.0328333 | E103: 376.5376821 | F103: 170238.18 | H103: 998.5705155 | I103: 622.0328333 | K103: 376.5376821 | L103: 170238.18
A104: 94 | B104: 2023-10-01 | C104: 998.5705155 | D104: 620.6600312 | E104: 377.9104842 | F104: 169860.27 | H104: 998.5705155 | I104: 620.6600312 | K104: 377.9104842 | L104: 169860.27
A105: 95 | B105: 2023-11-01 | C105: 998.5705155 | D105: 619.2822344 | E105: 379.2882811 | F105: 169480.98 | H105: 998.5705155 | I105: 619.2822344 | K105: 379.2882811 | L105: 169480.98
A106: 96 | B106: 2023-12-01 | C106: 998.5705155 | D106: 617.8994062 | E106: 380.6711092 | F106: 169100.31 | H106: 998.5705155 | I106: 617.8994062 | K106: 380.6711092 | L106: 169100.31
A107: 97 | B107: 2024-01-01 | C107: =IF(F106>0,-PMT($C$4/12,$C$3*12,$C$5,0,0),0) -> 998.5705155 | D107: =IF(F106>0,F106*($C$4/12),0) -> 616.5115469 | E107: 382.0589686 | F107: 168718.25 | H107: =IF(L106>0,MIN(-PMT($C$4/12,$C$3*12,$C$5,0,0),L106+I107),0) -> 998.5705155 | I107: =IF(L106>0,L106*($C$4/12),0) -> 616.5115469 | K107: 382.0589686 | L107: 168718.25
A108: 98 | B108: 2024-02-01 | C108: 998.5705155 | D108: 615.1186198 | E108: 383.4518957 | F108: 168334.8 | H108: 998.5705155 | I108: 615.1186198 | K108: 383.4518957 | L108: 168334.8
A109: 99 | B109: 2024-03-01 | C109: 998.5705155 | D109: 613.720625 | E109: 384.8498905 | F109: 167949.95 | H109: 998.5705155 | I109: 613.720625 | K109: 384.8498905 | L109: 167949.95
A110: 100 | B110: 2024-04-01 | C110: 998.5705155 | D110: 612.317526 | E110: 386.2529894 | F110: 167563.7 | H110: 998.5705155 | I110: 612.317526 | K110: 386.2529894 | L110: 167563.7
A111: 101 | B111: 2024-05-01 | C111: 998.5705155 | D111: 610.9093229 | E111: 387.6611926 | F111: 167176.04 | H111: 998.5705155 | I111: 610.9093229 | K111: 387.6611926 | L111: 167176.04
A112: 102 | B112: 2024-06-01 | C112: 998.5705155 | D112: 609.4959792 | E112: 389.0745363 | F112: 166786.97 | H112: 998.5705155 | I112: 609.4959792 | K112: 389.0745363 | L112: 166786.97
A113: 103 | B113: 2024-07-01 | C113: 998.5705155 | D113: 608.0774948 | E113: 390.4930207 | F113: 166396.48 | H113: 998.5705155 | I113: 608.0774948 | K113: 390.4930207 | L113: 166396.48
A114: 104 | B114: 2024-08-01 | C114: 998.5705155 | D114: 606.6538333 | E114: 391.9166821 | F114: 166004.56 | H114: 998.5705155 | I114: 606.6538333 | K114: 391.9166821 | L114: 166004.56
A115: 105 | B115: 2024-09-01 | C115: 998.5705155 | D115: 605.2249583 | E115: 393.3455571 | F115: 165611.21 | H115: 998.5705155 | I115: 605.2249583 | K115: 393.3455571 | L115: 165611.21
A116: 106 | B116: 2024-10-01 | C116: 998.5705155 | D116: 603.7908698 | E116: 394.7796457 | F116: 165216.43 | H116: 998.5705155 | I116: 603.7908698 | K116: 394.7796457 | L116: 165216.43
A117: 107 | B117: 2024-11-01 | C117: 998.5705155 | D117: 602.3515677 | E117: 396.2189478 | F117: 164820.21 | H117: 998.5705155 | I117: 602.3515677 | K117: 396.2189478 | L117: 164820.21
A118: 108 | B118: 2024-12-01 | C118: 998.5705155 | D118: 600.9070156 | E118: 397.6634998 | F118: 164422.55 | H118: 998.5705155 | I118: 600.9070156 | K118: 397.6634998 | L118: 164422.55
A119: 109 | B119: 2025-01-01 | C119: 998.5705155 | D119: 599.4572135 | E119: 399.1133019 | F119: 164023.44 | H119: 998.5705155 | I119: 599.4572135 | K119: 399.1133019 | L119: 164023.44
A120: 110 | B120: 2025-02-01 | C120: 998.5705155 | D120: 598.002125 | E120: 400.5683905 | F120: 163622.87 | H120: 998.5705155 | I120: 598.002125 | K120: 400.5683905 | L120: 163622.87
A121: 111 | B121: 2025-03-01 | C121: 998.5705155 | D121: 596.5417135 | E121: 402.0288019 | F121: 163220.84 | H121: 998.5705155 | I121: 596.5417135 | K121: 402.0288019 | L121: 163220.84
A122: 112 | B122: 2025-04-01 | C122: 998.5705155 | D122: 595.0759792 | E122: 403.4945363 | F122: 162817.35 | H122: 998.5705155 | I122: 595.0759792 | K122: 403.4945363 | L122: 162817.35
A123: 113 | B123: 2025-05-01 | C123: 998.5705155 | D123: 593.6049219 | E123: 404.9655936 | F123: 162412.38 | H123: 998.5705155 | I123: 593.6049219 | K123: 404.9655936 | L123: 162412.38
A124: 114 | B124: 2025-06-01 | C124: 998.5705155 | D124: 592.1284687 | E124: 406.4420467 | F124: 162005.94 | H124: 998.5705155 | I124: 592.1284687 | K124: 406.4420467 | L124: 162005.94
A125: 115 | B125: 2025-07-01 | C125: 998.5705155 | D125: 590.6466562 | E125: 407.9238592 | F125: 161598.02 | H125: 998.5705155 | I125: 590.6466562 | K125: 407.9238592 | L125: 161598.02
A126: 116 | B126: 2025-08-01 | C126: 998.5705155 | D126: 589.1594479 | E126: 409.4110676 | F126: 161188.61 | H126: 998.5705155 | I126: 589.1594479 | K126: 409.4110676 | L126: 161188.61
A127: 117 | B127: 2025-09-01 | C127: 998.5705155 | D127: 587.6668073 | E127: 410.9037082 | F127: 160777.71 | H127: 998.5705155 | I127: 587.6668073 | K127: 410.9037082 | L127: 160777.71
A128: 118 | B128: 2025-10-01 | C128: 998.5705155 | D128: 586.1687344 | E128: 412.4017811 | F128: 160365.31 | H128: 998.5705155 | I128: 586.1687344 | K128: 412.4017811 | L128: 160365.31
A129: 119 | B129: 2025-11-01 | C129: 998.5705155 | D129: 584.6651927 | E129: 413.9053228 | F129: 159951.4 | H129: 998.5705155 | I129: 584.6651927 | K129: 413.9053228 | L129: 159951.4
A130: 120 | B130: 2025-12-01 | C130: 998.5705155 | D130: 583.1561458 | E130: 415.4143696 | F130: 159535.99 | H130: 998.5705155 | I130: 583.1561458 | K130: 415.4143696 | L130: 159535.99
A131: 121 | B131: 2026-01-01 | C131: 998.5705155 | D131: 581.6416302 | E131: 416.9288853 | F131: 159119.06 | H131: 998.5705155 | I131: 581.6416302 | K131: 416.9288853 | L131: 159119.06
A132: 122 | B132: 2026-02-01 | C132: 998.5705155 | D132: 580.1215729 | E132: 418.4489426 | F132: 158700.61 | H132: 998.5705155 | I132: 580.1215729 | K132: 418.4489426 | L132: 158700.61
A133: 123 | B133: 2026-03-01 | C133: 998.5705155 | D133: 578.595974 | E133: 419.9745415 | F133: 158280.64 | H133: 998.5705155 | I133: 578.595974 | K133: 419.9745415 | L133: 158280.64
A134: 124 | B134: 2026-04-01 | C134: 998.5705155 | D134: 577.0648333 | E134: 421.5056821 | F134: 157859.13 | H134: 998.5705155 | I134: 577.0648333 | K134: 421.5056821 | L134: 157859.13
A135: 125 | B135: 2026-05-01 | C135: 998.5705155 | D135: 575.5280781 | E135: 423.0424373 | F135: 157436.09 | H135: 998.5705155 | I135: 575.5280781 | K135: 423.0424373 | L135: 157436.09
A136: 126 | B136: 2026-06-01 | C136: 998.5705155 | D136: 573.9857448 | E136: 424.5847707 | F136: 157011.51 | H136: 998.5705155 | I136: 573.9857448 | K136: 424.5847707 | L136: 157011.51
A137: 127 | B137: 2026-07-01 | C137: 998.5705155 | D137: 572.4377969 | E137: 426.1327186 | F137: 156585.38 | H137: 998.5705155 | I137: 572.4377969 | K137: 426.1327186 | L137: 156585.38
A138: 128 | B138: 2026-08-01 | C138: 998.5705155 | D138: 570.8841979 | E138: 427.6863176 | F138: 156157.69 | H138: 998.5705155 | I138: 570.8841979 | K138: 427.6863176 | L138: 156157.69
A139: 129 | B139: 2026-09-01 | C139: =IF(F138>0,-PMT($C$4/12,$C$3*12,$C$5,0,0),0) -> 998.5705155 | D139: =IF(F138>0,F138*($C$4/12),0) -> 569.3249115 | E139: 429.245604 | F139: 155728.44 | H139: =IF(L138>0,MIN(-PMT($C$4/12,$C$3*12,$C$5,0,0),L138+I139),0) -> 998.5705155 | I139: =IF(L138>0,L138*($C$4/12),0) -> 569.3249115 | K139: =IF(H139=0,0,MIN(L138,H139-I139+J139)) -> 429.245604 | L139: 155728.44
A140: 130 | B140: 2026-10-01 | C140: 998.5705155 | D140: 567.7599375 | E140: =C140-D140 -> 430.810578 | F140: =ROUND(IF(F139-E140>0,F139-E140,0),2) -> 155297.63 | H140: 998.5705155 | I140: 567.7599375 | K140: 430.810578 | L140: =ROUND(IF(L139-K140>0,L139-K140,0),2) -> 155297.63
A141: 131 | B141: =EDATE(B140,1) -> 2026-11-01 | C141: 998.5705155 | D141: 566.189276 | E141: 432.3812394 | F141: 154865.25 | H141: 998.5705155 | I141: 566.189276 | K141: 432.3812394 | L141: 154865.25
A142: 132 | B142: 2026-12-01 | C142: 998.5705155 | D142: 564.6128906 | E142: 433.9576248 | F142: 154431.29 | H142: 998.5705155 | I142: 564.6128906 | K142: 433.9576248 | L142: 154431.29
A143: 133 | B143: 2027-01-01 | C143: 998.5705155 | D143: 563.0307448 | E143: 435.5397707 | F143: 153995.75 | H143: 998.5705155 | I143: 563.0307448 | K143: 435.5397707 | L143: 153995.75
A144: 134 | B144: 2027-02-01 | C144: 998.5705155 | D144: 561.4428385 | E144: 437.1276769 | F144: 153558.62 | H144: 998.5705155 | I144: 561.4428385 | K144: 437.1276769 | L144: 153558.62
A145: 135 | B145: 2027-03-01 | C145: 998.5705155 | D145: 559.8491354 | E145: 438.7213801 | F145: 153119.9 | H145: 998.5705155 | I145: 559.8491354 | K145: 438.7213801 | L145: 153119.9
A146: 136 | B146: 2027-04-01 | C146: 998.5705155 | D146: 558.2496354 | E146: 440.3208801 | F146: 152679.58 | H146: 998.5705155 | I146: 558.2496354 | K146: 440.3208801 | L146: 152679.58
A147: 137 | B147: 2027-05-01 | C147: 998.5705155 | D147: 556.6443021 | E147: 441.9262134 | F147: 152237.65 | H147: 998.5705155 | I147: 556.6443021 | K147: 441.9262134 | L147: 152237.65
A148: 138 | B148: 2027-06-01 | C148: 998.5705155 | D148: 555.033099 | E148: 443.5374165 | F148: 151794.11 | H148: 998.5705155 | I148: 555.033099 | K148: 443.5374165 | L148: 151794.11
A149: 139 | B149: 2027-07-01 | C149: 998.5705155 | D149: 553.416026 | E149: 445.1544894 | F149: 151348.96 | H149: 998.5705155 | I149: 553.416026 | K149: 445.1544894 | L149: 151348.96
A150: 140 | B150: 2027-08-01 | C150: 998.5705155 | D150: 551.7930833 | E150: 446.7774321 | F150: 150902.18 | H150: 998.5705155 | I150: 551.7930833 | K150: 446.7774321 | L150: 150902.18
A151: 141 | B151: 2027-09-01 | C151: 998.5705155 | D151: 550.1641979 | E151: 448.4063176 | F151: 150453.77 | H151: 998.5705155 | I151: 550.1641979 | K151: 448.4063176 | L151: 150453.77
A152: 142 | B152: 2027-10-01 | C152: 998.5705155 | D152: 548.5293698 | E152: 450.0411457 | F152: 150003.73 | H152: 998.5705155 | I152: 548.5293698 | K152: 450.0411457 | L152: 150003.73
A153: 143 | B153: 2027-11-01 | C153: 998.5705155 | D153: 546.888599 | E153: 451.6819165 | F153: 149552.05 | H153: =ROUND(IF(L152>0,MIN(-PMT($C$4/12,$C$3*12,$C$5,0,0),L152+I153),0),2) -> 998.57 | I153: 546.888599 | K153: 451.681401 | L153: 149552.05
A154: 144 | B154: 2027-12-01 | C154: 998.5705155 | D154: 545.241849 | E154: 453.3286665 | F154: 149098.72 | H154: =IF(L153>0,MIN(-PMT($C$4/12,$C$3*12,$C$5,0,0),L153+I154),0) -> 998.5705155 | I154: 545.241849 | K154: 453.3286665 | L154: 149098.72
A155: 145 | B155: 2028-01-01 | C155: 998.5705155 | D155: 543.5890833 | E155: 454.9814321 | F155: 148643.74 | H155: 998.5705155 | I155: 543.5890833 | K155: 454.9814321 | L155: 148643.74
A156: 146 | B156: 2028-02-01 | C156: 998.5705155 | D156: 541.9303021 | E156: 456.6402134 | F156: 148187.1 | H156: 998.5705155 | I156: 541.9303021 | K156: 456.6402134 | L156: 148187.1
A157: 147 | B157: 2028-03-01 | C157: 998.5705155 | D157: 540.2654687 | E157: 458.3050467 | F157: 147728.79 | H157: 998.5705155 | I157: 540.2654687 | K157: 458.3050467 | L157: 147728.79
A158: 148 | B158: 2028-04-01 | C158: 998.5705155 | D158: 538.5945469 | E158: 459.9759686 | F158: 147268.81 | H158: 998.5705155 | I158: 538.5945469 | K158: 459.9759686 | L158: 147268.81
A159: 149 | B159: 2028-05-01 | C159: 998.5705155 | D159: 536.9175365 | E159: 461.652979 | F159: 146807.16 | H159: 998.5705155 | I159: 536.9175365 | K159: 461.652979 | L159: 146807.16
A160: 150 | B160: 2028-06-01 | C160: 998.5705155 | D160: 535.2344375 | E160: 463.336078 | F160: 146343.82 | H160: 998.5705155 | I160: 535.2344375 | K160: 463.336078 | L160: 146343.82
A161: 151 | B161: 2028-07-01 | C161: 998.5705155 | D161: 533.5451771 | E161: 465.0253384 | F161: 145878.79 | H161: 998.5705155 | I161: 533.5451771 | K161: 465.0253384 | L161: 145878.79
A162: 152 | B162: 2028-08-01 | C162: 998.5705155 | D162: 531.8497552 | E162: 466.7207603 | F162: 145412.07 | H162: 998.5705155 | I162: 531.8497552 | K162: 466.7207603 | L162: 145412.07
A163: 153 | B163: 2028-09-01 | C163: 998.5705155 | D163: 530.1481719 | E163: 468.4223436 | F163: 144943.65 | H163: 998.5705155 | I163: 530.1481719 | K163: 468.4223436 | L163: 144943.65
A164: 154 | B164: 2028-10-01 | C164: 998.5705155 | D164: 528.4403906 | E164: 470.1301248 | F164: 144473.52 | H164: 998.5705155 | I164: 528.4403906 | K164: 470.1301248 | L164: 144473.52
A165: 155 | B165: 2028-11-01 | C165: 998.5705155 | D165: 526.726375 | E165: 471.8441405 | F165: 144001.68 | H165: 998.5705155 | I165: 526.726375 | K165: 471.8441405 | L165: 144001.68
A166: 156 | B166: 2028-12-01 | C166: 998.5705155 | D166: 525.006125 | E166: 473.5643905 | F166: 143528.12 | H166: 998.5705155 | I166: 525.006125 | K166: 473.5643905 | L166: 143528.12
A167: 157 | B167: 2029-01-01 | C167: 998.5705155 | D167: 523.2796042 | E167: 475.2909113 | F167: 143052.83 | H167: 998.5705155 | I167: 523.2796042 | K167: 475.2909113 | L167: 143052.83
A168: 158 | B168: 2029-02-01 | C168: 998.5705155 | D168: 521.546776 | E168: 477.0237394 | F168: 142575.81 | H168: 998.5705155 | I168: 521.546776 | K168: 477.0237394 | L168: 142575.81
A169: 159 | B169: 2029-03-01 | C169: 998.5705155 | D169: 519.8076406 | E169: 478.7628748 | F169: 142097.05 | H169: 998.5705155 | I169: 519.8076406 | K169: 478.7628748 | L169: 142097.05
A170: 160 | B170: 2029-04-01 | C170: 998.5705155 | D170: 518.0621615 | E170: 480.508354 | F170: 141616.54 | H170: 998.5705155 | I170: 518.0621615 | K170: 480.508354 | L170: 141616.54
A171: 161 | B171: 2029-05-01 | C171: =IF(F170>0,-PMT($C$4/12,$C$3*12,$C$5,0,0),0) -> 998.5705155 | D171: =IF(F170>0,F170*($C$4/12),0) -> 516.3103021 | E171: 482.2602134 | F171: 141134.28 | H171: 998.5705155 | I171: =IF(L170>0,L170*($C$4/12),0) -> 516.3103021 | K171: 482.2602134 | L171: 141134.28
A172: 162 | B172: 2029-06-01 | C172: 998.5705155 | D172: 514.5520625 | E172: 484.018453 | F172: 140650.26 | H172: 998.5705155 | I172: 514.5520625 | K172: 484.018453 | L172: 140650.26
A173: 163 | B173: 2029-07-01 | C173: 998.5705155 | D173: 512.7874063 | E173: 485.7831092 | F173: 140164.48 | H173: 998.5705155 | I173: 512.7874063 | K173: 485.7831092 | L173: 140164.48
A174: 164 | B174: 2029-08-01 | C174: 998.5705155 | D174: 511.0163333 | E174: 487.5541821 | F174: 139676.93 | H174: 998.5705155 | I174: 511.0163333 | K174: 487.5541821 | L174: 139676.93
A175: 165 | B175: 2029-09-01 | C175: 998.5705155 | D175: 509.2388073 | E175: 489.3317082 | F175: 139187.6 | H175: 998.5705155 | I175: 509.2388073 | K175: 489.3317082 | L175: 139187.6
A176: 166 | B176: 2029-10-01 | C176: 998.5705155 | D176: 507.4547917 | E176: 491.1157238 | F176: 138696.48 | H176: 998.5705155 | I176: 507.4547917 | K176: 491.1157238 | L176: 138696.48
A177: 167 | B177: 2029-11-01 | C177: 998.5705155 | D177: 505.66425 | E177: 492.9062655 | F177: 138203.57 | H177: 998.5705155 | I177: 505.66425 | K177: 492.9062655 | L177: 138203.57
A178: 168 | B178: 2029-12-01 | C178: 998.5705155 | D178: 503.8671823 | E178: 494.7033332 | F178: 137708.87 | H178: 998.5705155 | I178: 503.8671823 | K178: 494.7033332 | L178: 137708.87
A179: 169 | B179: 2030-01-01 | C179: 998.5705155 | D179: 502.0635885 | E179: 496.5069269 | F179: 137212.36 | H179: 998.5705155 | I179: 502.0635885 | K179: 496.5069269 | L179: 137212.36
A180: 170 | B180: 2030-02-01 | C180: 998.5705155 | D180: 500.2533958 | E180: 498.3171196 | F180: 136714.04 | H180: 998.5705155 | I180: 500.2533958 | K180: 498.3171196 | L180: 136714.04
A181: 171 | B181: 2030-03-01 | C181: 998.5705155 | D181: 498.4366042 | E181: 500.1339113 | F181: 136213.91 | H181: 998.5705155 | I181: 498.4366042 | K181: 500.1339113 | L181: 136213.91
A182: 172 | B182: 2030-04-01 | C182: 998.5705155 | D182: 496.6132135 | E182: 501.9573019 | F182: 135711.95 | H182: 998.5705155 | I182: 496.6132135 | K182: 501.9573019 | L182: 135711.95
A183: 173 | B183: 2030-05-01 | C183: 998.5705155 | D183: 494.783151 | E183: 503.7873644 | F183: 135208.16 | H183: 998.5705155 | I183: 494.783151 | K183: 503.7873644 | L183: 135208.16
A184: 174 | B184: 2030-06-01 | C184: 998.5705155 | D184: 492.9464167 | E184: 505.6240988 | F184: 134702.54 | H184: 998.5705155 | I184: 492.9464167 | K184: 505.6240988 | L184: 134702.54
A185: 175 | B185: 2030-07-01 | C185: 998.5705155 | D185: 491.1030104 | E185: 507.4675051 | F185: 134195.07 | H185: 998.5705155 | I185: 491.1030104 | K185: 507.4675051 | L185: 134195.07
A186: 176 | B186: 2030-08-01 | C186: 998.5705155 | D186: 489.2528594 | E186: 509.3176561 | F186: 133685.75 | H186: 998.5705155 | I186: 489.2528594 | K186: 509.3176561 | L186: 133685.75
A187: 177 | B187: 2030-09-01 | C187: 998.5705155 | D187: 487.3959635 | E187: 511.1745519 | F187: 133174.58 | H187: 998.5705155 | I187: 487.3959635 | K187: 511.1745519 | L187: 133174.58
A188: 178 | B188: 2030-10-01 | C188: 998.5705155 | D188: 485.5323229 | E188: 513.0381926 | F188: 132661.54 | H188: 998.5705155 | I188: 485.5323229 | K188: 513.0381926 | L188: 132661.54
A189: 179 | B189: 2030-11-01 | C189: 998.5705155 | D189: 483.6618646 | E189: 514.9086509 | F189: 132146.63 | H189: 998.5705155 | I189: 483.6618646 | K189: 514.9086509 | L189: 132146.63
A190: 180 | B190: 2030-12-01 | C190: 998.5705155 | D190: 481.7845885 | E190: 516.7859269 | F190: 131629.84 | H190: 998.5705155 | I190: 481.7845885 | K190: 516.7859269 | L190: 131629.84
A191: 181 | B191: 2031-01-01 | C191: =IF(F190>0,-PMT($C$4/12,$C$3*12,$C$5,0,0),0) -> 998.5705155 | D191: =IF(F190>0,F190*($C$4/12),0) -> 479.9004583 | E191: =C191-D191 -> 518.6700571 | F191: =ROUND(IF(F190-E191>0,F190-E191,0),2) -> 131111.17 | H191: =IF(L190>0,MIN(-PMT($C$4/12,$C$3*12,$C$5,0,0),L190+I191),0) -> 998.5705155 | I191: =IF(L190>0,L190*($C$4/12),0) -> 479.9004583 | K191: =IF(H191=0,0,MIN(L190,H191-I191+J191)) -> 518.6700571 | L191: =ROUND(IF(L190-K191>0,L190-K191,0),2) -> 131111.17
A192: 182 | B192: 2031-02-01 | C192: 998.5705155 | D192: 478.009474 | E192: 520.5610415 | F192: 130590.61 | H192: 998.5705155 | I192: 478.009474 | K192: 520.5610415 | L192: 130590.61
A193: 183 | B193: 2031-03-01 | C193: 998.5705155 | D193: 476.111599 | E193: 522.4589165 | F193: 130068.15 | H193: 998.5705155 | I193: 476.111599 | K193: 522.4589165 | L193: 130068.15
A194: 184 | B194: 2031-04-01 | C194: 998.5705155 | D194: 474.2067969 | E194: 524.3637186 | F194: 129543.79 | H194: 998.5705155 | I194: 474.2067969 | K194: 524.3637186 | L194: 129543.79
A195: 185 | B195: 2031-05-01 | C195: 998.5705155 | D195: 472.2950677 | E195: 526.2754478 | F195: 129017.51 | H195: 998.5705155 | I195: 472.2950677 | K195: 526.2754478 | L195: 129017.51
A196: 186 | B196: 2031-06-01 | C196: 998.5705155 | D196: 470.3763385 | E196: 528.1941769 | F196: 128489.32 | H196: 998.5705155 | I196: 470.3763385 | K196: 528.1941769 | L196: 128489.32
A197: 187 | B197: 2031-07-01 | C197: 998.5705155 | D197: 468.4506458 | E197: 530.1198696 | F197: 127959.2 | H197: 998.5705155 | I197: 468.4506458 | K197: 530.1198696 | L197: 127959.2
A198: 188 | B198: 2031-08-01 | C198: 998.5705155 | D198: 466.5179167 | E198: 532.0525988 | F198: 127427.15 | H198: 998.5705155 | I198: 466.5179167 | K198: 532.0525988 | L198: 127427.15
A199: 189 | B199: 2031-09-01 | C199: 998.5705155 | D199: 464.578151 | E199: 533.9923644 | F199: 126893.16 | H199: 998.5705155 | I199: 464.578151 | K199: 533.9923644 | L199: 126893.16
A200: 190 | B200: 2031-10-01 | C200: 998.5705155 | D200: 462.6313125 | E200: 535.939203 | F200: 126357.22 | H200: 998.5705155 | I200: 462.6313125 | K200: 535.939203 | L200: 126357.22
A201: 191 | B201: 2031-11-01 | C201: 998.5705155 | D201: 460.6773646 | E201: 537.8931509 | F201: 125819.33 | H201: 998.5705155 | I201: 460.6773646 | K201: 537.8931509 | L201: 125819.33
A202: 192 | B202: 2031-12-01 | C202: 998.5705155 | D202: 458.7163073 | E202: 539.8542082 | F202: 125279.48 | H202: 998.5705155 | I202: 458.7163073 | K202: 539.8542082 | L202: 125279.48
... 171 more rows
